bitfinex/quotes_BTCUSD_20250602
["timestamp","ask_amount","ask_price","bid_price","bid_amount"]
[1748860736404,0.35919531,104450.0,104440.0,0.28117003]
[1748860736631,0.77218814,104450.0,104440.0,0.28117003]
[1748860736853,0.78176191,104450.0,104440.0,0.28117003]
[1748860737922,0.97324108,104450.0,104440.0,0.28117003]
[1748860738134,0.98281503,104450.0,104440.0,0.28117003]
[1748860738801,0.97324181,104450.0,104440.0,0.2715958]
[1748860739009,0.96366831,104450.0,104440.0,0.26202148]
[1748860739215,0.95409463,104450.0,104440.0,0.26202158]
[1748860739432,0.95409463,104450.0,104440.0,0.0418]
[1748860739668,0.21064689,104440.0,104430.0,0.26144275]
[1748860739880,0.63321523,104440.0,104430.0,0.27101808]
[1748860740097,0.62364036,104440.0,104430.0,0.28059323]
[1748860740328,0.43214285,104440.0,104430.0,0.28059323]
[1748860741642,0.62364036,104440.0,104430.0,0.27501808]
[1748860741858,0.62364036,104440.0,104430.0,0.26544284]
[1748860742068,0.01914892,104440.0,104430.0,0.28459332]
[1748860742332,0.42256807,104440.0,104430.0,0.29129586]
[1748860742551,0.43214276,104440.0,104430.0,0.29129577]
[1748860742760,0.43214276,104440.0,104430.0,0.29129576]
[1748860742979,0.43214276,104440.0,104430.0,0.28459332]
[1748860743189,0.43214276,104440.0,104430.0,0.29129576]
[1748860743420,0.02872361,104440.0,104430.0,0.29129576]
[1748860743714,0.02872361,104440.0,104430.0,0.29129943]
[1748860744291,0.02872361,104440.0,104430.0,0.28459332]
[1748860744478,0.02872361,104440.0,104430.0,0.29129943]
[1748860745113,0.01914837,104440.0,104430.0,0.29129943]
[1748860745317,0.02872287,104440.0,104430.0,0.29130059]
[1748860745926,0.03829756,104440.0,104430.0,0.29130059]
[1748860746163,0.22979507,104440.0,104430.0,0.27215626]
[1748860746371,0.63321504,104440.0,104430.0,0.28173168]
[1748860746584,0.63321504,104440.0,104430.0,0.29132296]
[1748860746825,0.63321504,104440.0,104430.0,0.2845935]
[1748860747111,0.63321504,104440.0,104430.0,0.29132294]
[1748860747353,0.63321504,104440.0,104430.0,0.2913231]
[1748860747596,0.43214266,104440.0,104430.0,0.2913231]
[1748860747811,0.43214202,104440.0,104430.0,0.29132246]
[1748860748028,0.44171671,104440.0,104430.0,0.29132244]
[1748860748218,0.43214202,104440.0,104430.0,0.28459286]
[1748860748463,0.44171662,104440.0,104430.0,0.28459286]
[1748860748908,0.45129131,104440.0,104430.0,0.28459286]
[1748860749123,0.44171662,104440.0,104430.0,0.29132253]
[1748860749337,0.03829747,104440.0,104430.0,0.29132253]
[1748860750052,0.04787216,104440.0,104430.0,0.29132253]
[1748860750484,0.04787289,104440.0,104430.0,0.29132253]
[1748860750956,0.2393704,104440.0,104430.0,0.28174738]
[1748860751181,0.04787289,104440.0,104430.0,0.29132253]
[1748860751409,0.03829811,104440.0,104430.0,0.29132253]
[1748860751663,0.03829811,104440.0,104430.0,0.29132268]
[1748860751885,0.03829811,104440.0,104430.0,0.2913228]
[1748860752322,0.03829811,104440.0,104430.0,0.28459286]
[1748860752531,0.03829811,104440.0,104430.0,0.2913228]
[1748860752737,0.03829811,104440.0,104430.0,0.30926931]
[1748860753557,0.03829811,104440.0,104430.0,0.30926968]
[1748860753760,0.03829811,104440.0,104430.0,0.30926977]
[1748860753962,0.03829811,104440.0,104430.0,0.30253989]
[1748860754163,0.23937095,104440.0,104430.0,0.28459286]
[1748860754369,0.23937095,104440.0,104430.0,0.30253992]
[1748860754511,0.23937095,104440.0,104430.0,0.30927006]
[1748860754749,0.6427901,104440.0,104430.0,0.30927006]
[1748860754960,0.6427901,104440.0,104430.0,0.291323]
[1748860755212,0.6427901,104440.0,104430.0,0.29969493]
[1748860755533,0.6427901,104440.0,104430.0,0.28174785]
[1748860755743,0.6427901,104440.0,104430.0,0.29969498]
[1748860755930,0.02872379,104440.0,104430.0,0.30253995]
[1748860756361,0.02872379,104440.0,104430.0,0.30927009]
[1748860756561,0.02872379,104440.0,104430.0,0.30927008]
[1748860756771,0.03829857,104440.0,104430.0,0.28927008]
[1748860756976,0.61406631,104440.0,104430.0,0.02867722]
[1748860757179,0.60449153,104440.0,104430.0,0.27056885]
[1748860757383,0.60449153,104440.0,104430.0,0.27056956]
[1748860757588,0.0095745,104440.0,104430.0,0.28134824]
[1748860757793,0.02872306,104440.0,104430.0,0.28124813]
[1748860758017,0.02872306,104440.0,104430.0,0.2812481]
[1748860758217,0.02872306,104440.0,104430.0,0.29919531]
[1748860758978,0.02872306,104440.0,104430.0,0.29919523]
[1748860759401,0.03829766,104440.0,104430.0,0.29919522]
[1748860759629,0.03829738,104440.0,104430.0,0.29919527]
[1748860759836,0.03829728,104440.0,104430.0,0.29919527]
[1748860760037,0.03829728,104440.0,104430.0,0.29919526]
[1748860761214,0.03829728,104440.0,104430.0,0.29246507]
[1748860761434,0.03829728,104440.0,104430.0,0.2745179]
[1748860761627,0.03829728,104440.0,104430.0,0.29919498]
[1748860761892,0.02872278,104440.0,104430.0,0.29919498]
[1748860762133,0.62366776,104450.0,104440.0,0.26142102]
[1748860762345,0.64281493,104450.0,104440.0,0.2614212]
[1748860762550,0.63324171,104450.0,104440.0,0.28609796]
[1748860762967,0.63324171,104450.0,104440.0,0.28609718]
[1748860763192,0.63324171,104450.0,104440.0,0.27652277]
[1748860763193,0.62366831,104450.0,104440.0,0.27652277]
[1748860763414,0.62366831,104450.0,104440.0,0.26694827]
[1748860763629,0.60452086,104450.0,104440.0,0.02467598]
[1748860763841,0.2106468,104440.0,104430.0,0.25186677]
[1748860764060,0.63321523,104440.0,104430.0,0.30527017]
[1748860764281,0.43214248,104440.0,104430.0,0.30527017]
[1748860764690,0.44171717,104440.0,104430.0,0.30527027]
[1748860764898,0.44171717,104440.0,104430.0,0.30527]
[1748860765104,0.63321468,104440.0,104430.0,0.29969485]
[1748860765304,0.63321468,104440.0,104430.0,0.3092701]
[1748860765537,0.64278946,104440.0,104430.0,0.29132301]
[1748860765718,0.44171717,104440.0,104430.0,0.30927025]
[1748860766008,0.64278946,104440.0,104430.0,0.30927025]
[1748860766421,0.63321523,104440.0,104430.0,0.24892006]
[1748860766583,0.63321523,104440.0,104430.0,0.26094831]
[1748860766768,0.6427901,104440.0,104430.0,0.30264467]
[1748860767007,0.6427901,104440.0,104430.0,0.30264462]
[1748860767173,0.6427901,104440.0,104430.0,0.30264464]
[1748860767379,0.6427901,104440.0,104430.0,0.2846934]
[1748860767896,0.42256788,104440.0,104430.0,0.28469285]
[1748860768107,0.93268107,104450.0,104440.0,0.25274679]
[1748860768523,0.93268107,104450.0,104440.0,0.2623212]
[1748860768733,0.93268107,104450.0,104440.0,0.26905269]
[1748860768946,0.00957441,104440.0,104430.0,0.25676604]
[1748860769180,0.4225677,104440.0,104430.0,0.25676604]
[1748860769390,0.4225677,104440.0,104430.0,0.25476604]
[1748860769600,0.42256761,104440.0,104430.0,0.27271654]
[1748860769810,0.43214202,104440.0,104430.0,0.25949748]
[1748860770021,0.43214202,104440.0,104430.0,0.25276604]
[1748860770223,0.43214202,104440.0,104430.0,0.26149745]
[1748860770421,0.43214202,104440.0,104430.0,0.27271646]
[1748860770628,0.43214202,104440.0,104430.0,0.27944786]
[1748860770856,0.02872287,104440.0,104430.0,0.28144786]
[1748860771062,0.01914846,104440.0,104430.0,0.28144786]
[1748860771927,0.01914846,104440.0,104430.0,0.25676604]
[1748860772147,0.01914846,104440.0,104430.0,0.28144771]
[1748860772776,0.01914846,104440.0,104430.0,0.28144731]
[1748860773326,0.02872296,104440.0,104430.0,0.28144731]
[1748860773539,0.02872296,104440.0,104430.0,0.28144716]
[1748860773970,0.02872296,104440.0,104430.0,0.28144678]
[1748860774187,0.01914846,104440.0,104430.0,0.28144678]
[1748860774401,0.02872296,104440.0,104430.0,0.25676604]
[1748860774622,0.02872296,104440.0,104430.0,0.28144678]
[1748860774833,0.02872296,104440.0,104430.0,0.2814467]
[1748860775061,0.03829765,104440.0,104430.0,0.27471561]
[1748860775278,0.03829765,104440.0,104430.0,0.2747154]
[1748860775514,0.03829765,104440.0,104430.0,0.28144641]
[1748860775729,0.03829765,104440.0,104430.0,0.2747154]
[1748860775919,0.03829765,104440.0,104430.0,0.2814463]
[1748860776086,0.03829765,104440.0,104430.0,0.26349702]
[1748860776300,0.03829765,104440.0,104430.0,0.2814463]
[1748860777187,0.63321431,104440.0,104430.0,0.2718718]
[1748860777424,0.61406622,104440.0,104430.0,0.05661084]
[1748860777644,0.61406622,104440.0,104430.0,0.03866186]
[1748860777894,0.61406622,104440.0,104430.0,0.05661113]
[1748860778142,0.61406622,104440.0,104430.0,0.05531113]
[1748860778377,0.61406622,104440.0,104430.0,0.24682697]
[1748860778623,0.61406622,104440.0,104430.0,0.25640276]
[1748860778850,0.61406622,104440.0,104430.0,0.23172252]
[1748860779099,0.61406622,104440.0,104430.0,0.25640242]
[1748860779304,0.61406622,104440.0,104430.0,0.05531061]
[1748860779529,0.61406622,104440.0,104430.0,0.03541061]
[1748860779750,0.61406622,104440.0,104430.0,0.03541089]
[1748860779957,0.61394814,104440.0,104430.0,0.03541095]
[1748860780172,0.65374814,104440.0,104430.0,0.03541095]
[1748860780835,0.65374814,104440.0,104430.0,0.03540815]
[1748860781249,0.65374814,104440.0,104430.0,0.01746097]
[1748860781487,0.65374814,104440.0,104430.0,0.03540784]
[1748860781698,0.65374814,104440.0,104430.0,0.03540747]
[1748860783255,0.65374814,104440.0,104430.0,0.02867235]
[1748860783483,0.61394814,104440.0,104430.0,0.01073089]
[1748860783706,0.61394814,104440.0,104430.0,0.02867234]
[1748860783941,0.61394814,104440.0,104430.0,0.02867195]
[1748860784166,0.61394814,104440.0,104430.0,0.02867212]
[1748860784373,0.61394814,104440.0,104430.0,0.01073089]
[1748860784602,0.61394814,104440.0,104430.0,0.02867207]
[1748860784833,0.61394814,104440.0,104430.0,0.01073089]
[1748860785048,0.61394814,104440.0,104430.0,0.23172252]
[1748860785260,0.61394814,104440.0,104430.0,0.25087373]
[1748860785471,0.61394814,104440.0,104430.0,0.28941465]
[1748860785681,0.61394814,104440.0,104430.0,0.27147373]
[1748860785889,0.61394814,104440.0,104430.0,0.29898957]
[1748860786128,0.61394814,104440.0,104430.0,0.2989895]
[1748860786335,0.61394814,104440.0,104430.0,0.28104915]
[1748860787282,0.61394814,104440.0,104430.0,0.3085648]
[1748860787492,0.61394814,104440.0,104430.0,0.29735208]
[1748860787698,0.61394814,104440.0,104430.0,0.29062393]
[1748860788325,0.42245017,104440.0,104430.0,0.31529082]
[1748860788536,0.42245017,104440.0,104430.0,0.29062338]
[1748860788780,0.62352246,104440.0,104430.0,0.29062338]
[1748860788969,0.62352246,104440.0,104430.0,0.31528995]
[1748860789130,0.62352246,104440.0,104430.0,0.29062338]
[1748860789331,0.63309733,104440.0,104430.0,0.29062338]
[1748860789555,0.63309733,104440.0,104430.0,0.28104823]
[1748860789760,0.63309733,104440.0,104430.0,0.29898762]
[1748860789971,0.63309733,104440.0,104430.0,0.305714]
[1748860790175,0.63309733,104440.0,104430.0,0.28104823]
[1748860790372,0.63309733,104440.0,104430.0,0.30571397]
[1748860790581,0.63309733,104440.0,104430.0,0.30571227]
[1748860791204,0.63309733,104440.0,104430.0,0.31528742]
[1748860791625,0.63309733,104440.0,104430.0,0.31528716]
[1748860791837,0.63309733,104440.0,104430.0,0.31528707]
[1748860792256,0.63309733,104440.0,104430.0,0.31528633]
[1748860792693,0.63309733,104440.0,104430.0,0.31528641]
[1748860793890,0.63309733,104440.0,104430.0,0.29734942]
[1748860794104,0.63309733,104440.0,104430.0,0.31528554]
[1748860794513,0.63309733,104440.0,104430.0,0.28655926]
[1748860794716,0.62352292,104440.0,104430.0,0.28655908]
[1748860794925,0.62352292,104440.0,104430.0,0.28655979]
[1748860795126,0.61406631,104440.0,104430.0,0.28655979]
[1748860795754,0.61406631,104440.0,104430.0,0.2865589]
[1748860795987,0.4107248,104440.0,104430.0,0.2865589]
[1748860796336,0.4107248,104440.0,104430.0,0.27983335]
[1748860796525,0.4107248,104440.0,104430.0,0.26189803]
[1748860796730,0.4107248,104440.0,104430.0,0.27983335]
[1748860796927,0.4107248,104440.0,104430.0,0.26862377]
[1748860797155,0.4107248,104440.0,104430.0,0.27983335]
[1748860797358,0.4107248,104440.0,104430.0,0.2798332]
[1748860797580,0.4107248,104440.0,104430.0,0.26189803]
[1748860798625,0.7099248,104440.0,104430.0,0.2798332]
[1748860798830,0.7099248,104440.0,104430.0,0.30570942]
[1748860799067,0.7099248,104440.0,104430.0,0.28777429]
[1748860799233,0.21922692,104440.0,104430.0,0.29062375]
[1748860799393,0.22022166,104440.0,104430.0,0.29734966]
[1748860799796,0.22022166,104440.0,104430.0,0.30571026]
[1748860800799,0.22022166,104440.0,104430.0,0.30571029]
[1748860801052,0.98766691,104450.0,104440.0,0.2602213]
[1748860801053,4.859e-05,104450.0,104440.0,0.2602213]
[1748860801286,0.84987521,104450.0,104440.0,0.28488309]
[1748860801499,0.85944861,104450.0,104440.0,0.28488308]
[1748860801715,0.85944861,104450.0,104440.0,0.28488282]
[1748860802617,0.85944861,104450.0,104440.0,0.28488172]
[1748860802781,0.85944861,104450.0,104440.0,0.27815651]
[1748860803117,0.56024861,104450.0,104440.0,0.26022148]
[1748860803365,0.84026153,104450.0,104440.0,0.25064698]
[1748860804739,0.84026153,104450.0,104440.0,0.26022139]
[1748860804976,0.84026153,104450.0,104440.0,0.28773235]
[1748860805190,0.84026153,104450.0,104440.0,0.26979571]
[1748860805402,0.84026153,104450.0,104440.0,0.28773234]
[1748860805619,0.84026153,104450.0,104440.0,0.26979571]
[1748860806291,0.84026153,104450.0,104440.0,0.28773234]
[1748860806495,0.84026153,104450.0,104440.0,0.28773236]
[1748860806710,0.84026153,104450.0,104440.0,0.27652263]
[1748860806911,0.84026153,104450.0,104440.0,0.28773418]
[1748860807114,0.84026153,104450.0,104440.0,0.27652263]
[1748860807319,0.84026153,104450.0,104440.0,0.26979571]
[1748860807768,0.84983503,104450.0,104440.0,0.28773418]
[1748860807984,0.66788972,104450.0,104440.0,0.3040348]
[1748860808198,0.85936889,104450.0,104440.0,0.30403431]
[1748860808403,0.86894284,104450.0,104440.0,0.29730761]
[1748860808612,0.86894284,104450.0,104440.0,0.27936994]
[1748860808826,0.86894284,104450.0,104440.0,0.29730761]
[1748860809273,0.86894284,104450.0,104440.0,0.27936994]
[1748860809689,0.86894284,104450.0,104440.0,0.30403423]
[1748860810112,0.86894284,104450.0,104440.0,0.30396513]
[1748860810326,0.66788972,104450.0,104440.0,0.30396513]
[1748860810532,0.66784972,104450.0,104440.0,0.30396513]
[1748860811401,0.85932889,104450.0,104440.0,0.30396513]
[1748860811607,0.86890284,104450.0,104440.0,0.30396513]
[1748860811818,0.86890284,104450.0,104440.0,0.30395977]
[1748860812027,0.86890284,104450.0,104440.0,0.29723499]
[1748860812214,0.86890284,104450.0,104440.0,0.27930221]
[1748860812913,0.86890284,104450.0,104440.0,0.28602761]
[1748860813122,0.67742367,104450.0,104440.0,0.27930221]
[1748860813329,0.67742367,104450.0,104440.0,0.2860276]
[1748860813749,0.86890284,104450.0,104440.0,0.2860276]
[1748860813962,0.86890284,104450.0,104440.0,0.27930221]
[1748860814170,0.01919586,104450.0,104440.0,0.29723665]
[1748860814377,0.31823586,104450.0,104440.0,0.28602762]
[1748860814586,0.31823586,104450.0,104440.0,0.3039617]
[1748860814807,4.859e-05,104450.0,104440.0,0.27930221]
[1748860815051,4.859e-05,104450.0,104440.0,0.38188178]
[1748860815273,0.30866181,104450.0,104440.0,0.37515651]
[1748860815701,0.30866181,104450.0,104440.0,0.39309003]
[1748860815923,0.30866181,104450.0,104440.0,0.38188158]
[1748860816144,0.30866181,104450.0,104440.0,0.37515651]
[1748860816407,0.30866181,104450.0,104440.0,0.39309003]
[1748860816759,0.30866181,104450.0,104440.0,0.37515651]
[1748860817291,0.00962181,104450.0,104440.0,0.38188158]
[1748860817570,0.00962181,104450.0,104440.0,0.37515651]
[1748860818644,4.859e-05,104450.0,104440.0,0.39308999]
[1748860818883,0.0096219,104450.0,104440.0,0.37515651]
[1748860819087,4.859e-05,104450.0,104440.0,0.37515651]
[1748860819339,4.859e-05,104450.0,104440.0,0.38188156]
[1748860819554,4.859e-05,104450.0,104440.0,0.37515651]
[1748860819974,0.00962181,104450.0,104440.0,0.39308999]
[1748860820187,0.00962181,104450.0,104440.0,0.38188156]
[1748860820395,4.859e-05,104450.0,104440.0,0.39981504]
[1748860820602,0.00962181,104450.0,104440.0,0.39308999]
[1748860820809,4.859e-05,104450.0,104440.0,0.39308999]
[1748860821018,0.00962172,104450.0,104440.0,0.41102277]
[1748860821231,4.859e-05,104450.0,104440.0,0.39308999]
[1748860821453,4.859e-05,104450.0,104440.0,0.39981478]
[1748860821664,4.859e-05,104450.0,104440.0,0.39308999]
[1748860821875,0.93205313,104460.0,104450.0,0.2602002]
[1748860822077,0.93205313,104460.0,104450.0,0.27813225]
[1748860822280,0.93205313,104460.0,104450.0,0.2602002]
[1748860822485,0.94162617,104460.0,104450.0,0.27812358]
[1748860822947,1.04600752,104460.0,104450.0,0.26855018]
[1748860823169,1.33639522,104460.0,104450.0,0.27812377]
[1748860823348,1.33639522,104460.0,104450.0,0.28769727]
[1748860823559,1.33739522,104460.0,104450.0,0.28769727]
[1748860823774,0.2106268,104450.0,104440.0,0.24868037]
[1748860823983,0.61396815,104450.0,104440.0,0.03585428]
[1748860824231,0.63446815,104450.0,104440.0,0.03585428]
[1748860824410,0.63446815,104450.0,104440.0,0.20943099]
[1748860824638,0.63446815,104450.0,104440.0,0.21900586]
[1748860824848,0.63446815,104450.0,104440.0,0.24650372]
[1748860825057,0.61396815,104450.0,104440.0,0.26279947]
[1748860825301,0.61407936,104450.0,104440.0,0.26279947]
[1748860825511,0.61407936,104450.0,104440.0,0.31327397]
[1748860825724,0.61407936,104450.0,104440.0,0.31327479]
[1748860825937,0.61407936,104450.0,104440.0,0.31327698]
[1748860826149,0.61407936,104450.0,104440.0,0.28862974]
[1748860826335,0.61407936,104450.0,104440.0,0.29535171]
[1748860826655,0.61407936,104450.0,104440.0,0.306555]
[1748860826857,0.61407936,104450.0,104440.0,0.28862974]
[1748860827065,0.61407936,104450.0,104440.0,0.30655501]
[1748860827273,0.61407936,104450.0,104440.0,0.28862974]
[1748860827485,0.61407936,104450.0,104440.0,0.31612933]
[1748860827693,0.61407936,104450.0,104440.0,0.28862974]
[1748860827907,0.73242291,104460.0,104450.0,0.21062644]
[1748860828119,1.04087549,104460.0,104450.0,0.21062662]
[1748860828337,0.64867549,104460.0,104450.0,0.22020012]
[1748860828547,1.04087549,104460.0,104450.0,0.25950012]
[1748860829395,1.04187549,104460.0,104450.0,0.25950012]
[1748860829638,1.04287549,104460.0,104450.0,0.24035294]
[1748860830069,0.04618833,104460.0,104450.0,0.2595002]
[1748860830282,0.55567497,104460.0,104450.0,0.25950039]
[1748860830517,0.24722267,104460.0,104450.0,0.2499268]
[1748860830726,0.54610267,104460.0,104450.0,0.25950039]
[1748860831363,0.24722267,104460.0,104450.0,0.25950039]
[1748860831583,0.54610267,104460.0,104450.0,0.27579943]
[1748860831832,0.54610267,104460.0,104450.0,0.29373421]
[1748860832070,0.54606267,104460.0,104450.0,0.27579938]
[1748860832280,0.54606267,104460.0,104450.0,0.26907389]
[1748860832878,0.54606248,104460.0,104450.0,0.28700994]
[1748860833040,0.54606248,104460.0,104450.0,0.28537318]
[1748860833249,0.55563543,104460.0,104450.0,0.28537318]
[1748860833450,0.55563543,104460.0,104450.0,0.28416229]
[1748860833806,0.95908799,104460.0,104450.0,0.28416229]
[1748860834156,0.95908799,104460.0,104450.0,0.28416054]
[1748860834364,0.95908799,104460.0,104450.0,0.26622636]
[1748860834608,0.94951541,104460.0,104450.0,0.2841599]
[1748860834806,0.93994265,104460.0,104450.0,0.06395951]
[1748860835007,1.37312236,104460.0,104450.0,0.01793419]
[1748860835219,0.20105312,104450.0,104440.0,0.23840568]
[1748860835391,0.60450568,104450.0,104440.0,0.23840568]
[1748860835749,0.60450568,104450.0,104440.0,0.25910568]
[1748860836174,0.60450568,104450.0,104440.0,0.26868028]
[1748860836382,0.60450568,104450.0,104440.0,0.27540588]
[1748860836591,0.60450568,104450.0,104440.0,0.26868028]
[1748860837457,0.60450568,104450.0,104440.0,0.27540586]
[1748860837854,0.60450568,104450.0,104440.0,0.26868028]
[1748860838300,0.60450568,104450.0,104440.0,0.27540586]
[1748860838511,0.02872104,104450.0,104440.0,0.31248939]
[1748860838725,0.00957331,104450.0,104440.0,0.30576381]
[1748860838929,0.02872039,104450.0,104440.0,0.28782892]
[1748860839138,0.03829416,104450.0,104440.0,0.29455442]
[1748860839648,0.03829416,104450.0,104440.0,0.28782892]
[1748860840103,0.03829416,104450.0,104440.0,0.29455442]
[1748860840385,0.03829416,104450.0,104440.0,0.30576361]
[1748860840585,0.03829398,104450.0,104440.0,0.3057636]
[1748860840790,0.03829398,104450.0,104440.0,0.28782892]
[1748860841597,0.02872021,104450.0,104440.0,0.28782892]
[1748860841799,0.03829389,104450.0,104440.0,0.30576686]
[1748860842056,0.02872021,104450.0,104440.0,0.28782892]
[1748860842257,0.03829398,104450.0,104440.0,0.30576668]
[1748860842469,0.03829398,104450.0,104440.0,0.28782892]
[1748860842670,0.03829389,104450.0,104440.0,0.29455559]
[1748860842873,0.02872021,104450.0,104440.0,0.31249334]
[1748860843083,0.03829389,104450.0,104440.0,0.28782892]
[1748860843510,0.03829389,104450.0,104440.0,0.31249317]
[1748860843717,0.03829389,104450.0,104440.0,0.28782892]
[1748860844131,0.03829389,104450.0,104440.0,0.30576656]
[1748860844332,0.02872021,104450.0,104440.0,0.28782892]
[1748860844534,0.01914671,104450.0,104440.0,0.30576656]
[1748860844945,0.01914671,104450.0,104440.0,0.31249317]
[1748860845162,0.92828989,104460.0,104440.0,0.28661727]
[1748860845374,0.93782265,104460.0,104450.0,0.24075294]
[1748860845586,0.93782265,104460.0,104450.0,0.25032662]
[1748860845800,0.93782265,104460.0,104450.0,0.25990021]
[1748860846004,0.93782265,104460.0,104450.0,0.26947371]
[1748860846258,0.93782265,104460.0,104450.0,0.28741252]
[1748860846469,0.93782265,104460.0,104450.0,0.29413957]
[1748860846715,0.93782265,104460.0,104450.0,0.26662726]
[1748860846915,0.93782265,104460.0,104450.0,0.27499248]
[1748860847752,0.93882265,104460.0,104450.0,0.27499248]
[1748860847965,0.93024989,104460.0,104450.0,0.23799175]
[1748860848185,0.93024989,104460.0,104450.0,0.22571879]
[1748860848578,0.93024989,104460.0,104450.0,0.22015294]
[1748860848784,0.93024989,104460.0,104450.0,0.24482015]
[1748860848989,0.93024989,104460.0,104450.0,0.22688036]
[1748860849215,0.93024989,104460.0,104450.0,0.24482015]
[1748860850303,0.93024989,104460.0,104450.0,0.22015294]
[1748860850508,0.93024989,104460.0,104450.0,0.22688036]
[1748860850747,0.93024989,104460.0,104450.0,0.24482015]
[1748860850969,0.93024989,104460.0,104450.0,0.24482044]
[1748860851174,0.93024989,104460.0,104450.0,0.24482123]
[1748860851375,0.92067685,104460.0,104450.0,0.26482123]
[1748860851581,0.62195685,104460.0,104450.0,0.25809352]
[1748860851795,0.92063685,104460.0,104450.0,0.26482123]
[1748860852025,0.9302097,104460.0,104450.0,0.27439491]
[1748860852230,0.6315297,104460.0,104450.0,0.27439343]
[1748860852436,0.9302097,104460.0,104450.0,0.27439343]
[1748860852645,0.9302097,104460.0,104450.0,0.24972662]
[1748860853077,0.9302097,104460.0,104450.0,0.26602785]
[1748860853321,0.9302097,104460.0,104450.0,0.26482096]
[1748860853756,0.9302097,104460.0,104450.0,0.26481953]
[1748860854380,0.6315297,104460.0,104450.0,0.26481953]
[1748860854588,0.9301697,104460.0,104450.0,0.26481953]
[1748860854787,0.9301697,104460.0,104450.0,0.24015294]
[1748860855028,0.02704345,104460.0,104450.0,0.26482089]
[1748860855237,0.55543489,104460.0,104450.0,0.28396779]
[1748860855438,0.36397405,104460.0,104450.0,0.28397144]
[1748860856067,0.36397405,104460.0,104450.0,0.27724986]
[1748860856269,0.36397405,104460.0,104450.0,0.25929984]
[1748860856475,0.36397405,104460.0,104450.0,0.28398111]
[1748860856683,0.55543489,104460.0,104450.0,0.28398111]
[1748860856895,0.96846049,104460.0,104450.0,0.26483306]
[1748860857192,0.99314263,104460.0,104450.0,0.26483324]
[1748860857374,0.93974284,104460.0,104450.0,0.06378012]
[1748860857789,0.93974284,104460.0,104450.0,0.0391]
[1748860858005,0.01914717,104450.0,104440.0,0.30666592]
[1748860858215,0.01914717,104450.0,104440.0,0.4204694]
[1748860858656,0.01914717,104450.0,104440.0,0.40252022]
[1748860859259,0.02872085,104450.0,104440.0,0.40925116]
[1748860859465,0.02872085,104450.0,104440.0,0.40252022]
[1748860859674,0.03829416,104450.0,104440.0,0.39294608]
[1748860859873,0.03829416,104450.0,104440.0,0.39967702]
[1748860860273,0.03829416,104450.0,104440.0,0.39294608]
[1748860860480,0.03829416,104450.0,104440.0,0.39967702]
[1748860860692,0.22977342,104450.0,104440.0,0.3217719]
[1748860860905,0.02872039,104450.0,104440.0,0.30382272]
[1748860861114,0.03829416,104450.0,104440.0,0.29709178]
[1748860861539,0.02872039,104450.0,104440.0,0.3217719]
[1748860861748,0.03829416,104450.0,104440.0,0.3217719]
[1748860862154,0.03829416,104450.0,104440.0,0.31504073]
[1748860862369,0.02872039,104450.0,104440.0,0.29709178]
[1748860862585,0.03829416,104450.0,104440.0,0.30382263]
[1748860862994,0.03829416,104450.0,104440.0,0.29709178]
[1748860863201,0.02872039,104450.0,104440.0,0.29709178]
[1748860863548,0.02872039,104450.0,104440.0,0.31504073]
[1748860863780,0.03829398,104450.0,104440.0,0.29709178]
[1748860864381,0.03829398,104450.0,104440.0,0.30382261]
[1748860864835,0.03829398,104450.0,104440.0,0.31504067]
[1748860865035,0.02872021,104450.0,104440.0,0.30382261]
[1748860865237,0.03829389,104450.0,104440.0,0.31504067]
[1748860865471,0.03829389,104450.0,104440.0,0.3217715]
[1748860865670,0.03829389,104450.0,104440.0,0.31504067]
[1748860865876,0.03829389,104450.0,104440.0,0.29709178]
[1748860866079,0.03829389,104450.0,104440.0,0.3217715]
[1748860866428,0.02872021,104450.0,104440.0,0.3217715]
[1748860866634,0.02872021,104450.0,104440.0,0.30382261]
[1748860866841,0.03829389,104450.0,104440.0,0.32177136]
[1748860867261,0.02872021,104450.0,104440.0,0.32177131]
[1748860867493,0.0287203,104450.0,104440.0,0.31504053]
[1748860867700,0.0287203,104450.0,104440.0,0.29709178]
[1748860867934,0.0287203,104450.0,104440.0,0.32177131]
[1748860868397,0.0287203,104450.0,104440.0,0.30382256]
[1748860868655,0.02872021,104450.0,104440.0,0.32177131]
[1748860868878,0.02872021,104450.0,104440.0,0.30382256]
[1748860869083,0.02872021,104450.0,104440.0,0.32177127]
[1748860869292,0.02872021,104450.0,104440.0,0.32177125]
[1748860869498,0.02872021,104450.0,104440.0,0.30382254]
[1748860869704,0.01914671,104450.0,104440.0,0.29709178]
[1748860870156,0.00957331,104450.0,104440.0,0.29709178]
[1748860871227,0.00957313,104450.0,104440.0,0.29699132]
[1748860871446,0.93748558,104460.0,104450.0,0.25152662]
[1748860871654,0.93748558,104460.0,104450.0,0.26947529]
[1748860871875,0.93748558,104460.0,104450.0,0.25152662]
[1748860872097,0.93748558,104460.0,104450.0,0.26947528]
[1748860872303,0.93748558,104460.0,104450.0,0.25152662]
[1748860872581,0.93848558,104460.0,104450.0,0.27620603]
[1748860872996,0.93848558,104460.0,104450.0,0.28577903]
[1748860873179,0.64000558,104460.0,104450.0,0.27620563]
[1748860873380,0.93844558,104460.0,104450.0,0.25152662]
[1748860873585,0.93844558,104460.0,104450.0,0.28577907]
[1748860873797,0.93944558,104460.0,104450.0,0.27904845]
[1748860874505,0.45911704,104460.0,104450.0,0.28862176]
[1748860874750,0.75755704,104460.0,104450.0,0.28862185]
[1748860874954,0.75755704,104460.0,104450.0,0.3161434]
[1748860875182,0.43039894,104460.0,104450.0,0.32287397]
[1748860875406,0.02704345,104460.0,104450.0,0.71949889]
[1748860875851,0.02704345,104460.0,104450.0,0.7309858]
[1748860876064,0.02704345,104460.0,104450.0,0.75566235]
[1748860876281,0.02704345,104460.0,104450.0,0.73744548]
[1748860876717,0.02604345,104460.0,104450.0,0.74417545]
[1748860876892,0.02504345,104460.0,104450.0,0.74417545]
[1748860877100,0.02504345,104460.0,104450.0,1.18002975]
[1748860877305,0.74507512,104480.0,104470.0,0.25945805]
[1748860877509,1.05304632,104480.0,104470.0,0.27740482]
[1748860877717,1.07488556,104480.0,104470.0,0.28697639]
[1748860878139,1.07488556,104480.0,104470.0,0.28694739]
[1748860878348,1.07488556,104480.0,104470.0,0.2690298]
[1748860878874,1.07788556,104480.0,104470.0,0.27737471]
[1748860879319,1.07788556,104480.0,104470.0,0.25945823]
[1748860879531,1.07788556,104480.0,104470.0,0.24031463]
[1748860879744,1.08088556,104480.0,104470.0,0.24988657]
[1748860879959,0.27672258,104480.0,104470.0,0.25945823]
[1748860880227,0.26715138,104480.0,104470.0,0.26902971]
[1748860880444,0.9687038,104480.0,104470.0,0.24988657]
[1748860880684,0.9687038,104480.0,104470.0,0.26779655]
[1748860880906,0.9687038,104480.0,104470.0,0.27736676]
[1748860881110,0.9627038,104480.0,104470.0,0.27736676]
[1748860881529,0.972275,104480.0,104470.0,0.29651017]
[1748860881753,0.972275,104480.0,104470.0,0.29650312]
[1748860881960,0.974275,104480.0,104470.0,0.29650312]
[1748860882197,0.974275,104480.0,104470.0,0.29650311]
[1748860882405,0.974275,104480.0,104470.0,0.25945842]
[1748860883871,0.96470416,104480.0,104470.0,0.25945842]
[1748860884280,0.96470416,104480.0,104470.0,0.27735888]